[Event "Titled Tuesday Blitz August 1 Early 2023"]
[White "Naroditsky, Daniel"]
[Black "Gutkin, Ilya"]
[WhiteFideId "2026961"]
[BlackFideId "16203470"]
[WhiteElo "3107"]
[BlackElo "2515"]
[Result "1-0"]
[Round "1"]
[TimeControl "180+1"]
[Date "2023.08.01"]
[WhiteClock "0:00:06"]
[BlackClock "0:00:02"]
[Board "2"]

1. e4 {[%clk 0:03:00]}  e6 {[%clk 0:02:57]} 2. d4 {[%clk 0:02:58]}  d5 {[%clk 0:02:56]} 3. Nd2 {[%clk 0:02:59]}  c5 {[%clk 0:02:54]} 4. Ngf3 {[%clk 0:02:59]}  cxd4 {[%clk 0:02:53]} 5. Nxd4 {[%clk 0:02:59]}  Nc6 {[%clk 0:02:53]} 6. Bb5 {[%clk 0:02:59]}  Bd7 {[%clk 0:02:53]} 7. Nxc6 {[%clk 0:03:00]}  bxc6 {[%clk 0:02:53]} 8. Bd3 {[%clk 0:03:00]}  Bd6 {[%clk 0:02:53]} 9. Qe2 {[%clk 0:03:00]}  Qc7 {[%clk 0:02:42]} 10. Nf3 {[%clk 0:02:53]}  Bf4 {[%clk 0:02:39]} 11. O-O {[%clk 0:02:46]}  Ne7 {[%clk 0:02:38]} 12. c4 {[%clk 0:02:41]}  O-O {[%clk 0:02:32]} 13. b3 {[%clk 0:02:30]}  Rfe8 {[%clk 0:02:22]} 14. Bb2 {[%clk 0:02:28]}  c5 {[%clk 0:02:18]} 15. exd5 {[%clk 0:02:06]}  exd5 {[%clk 0:02:12]} 16. cxd5 {[%clk 0:02:07]}  Nxd5 {[%clk 0:01:47]} 17. Bxh7+ {[%clk 0:02:05]}  Kxh7 {[%clk 0:01:41]} 18. Qd3+ {[%clk 0:02:04]}  Kg8 {[%clk 0:01:38]} 19. Qxd5 {[%clk 0:02:04]}  Bc6 {[%clk 0:01:38]} 20. Qxc5 {[%clk 0:01:44]}  Bxf3 {[%clk 0:01:18]} 21. Qxc7 {[%clk 0:01:43]}  Bxc7 {[%clk 0:01:19]} 22. gxf3 {[%clk 0:01:44]}  Re2 {[%clk 0:01:19]} 23. Bd4 {[%clk 0:01:40]}  Bb6 {[%clk 0:01:05]} 24. Rfd1 {[%clk 0:01:25]}  Bxd4 {[%clk 0:00:53]} 25. Rxd4 {[%clk 0:01:26]}  Rc8 {[%clk 0:00:53]} 26. Re4 {[%clk 0:01:11]}  Rd2 {[%clk 0:00:38]} 27. a4 {[%clk 0:00:47]}  Rcc2 {[%clk 0:00:35]} 28. Rf1 {[%clk 0:00:47]}  Rc3 {[%clk 0:00:32]} 29. b4 {[%clk 0:00:39]}  Rxf3 {[%clk 0:00:28]} 30. b5 {[%clk 0:00:34]}  Ra3 {[%clk 0:00:26]} 31. Rc1 {[%clk 0:00:33]}  Rd6 {[%clk 0:00:09]} 32. Rc8+ {[%clk 0:00:27]}  Kh7 {[%clk 0:00:09]} 33. Rh4+ {[%clk 0:00:27]}  Kg6 {[%clk 0:00:09]} 34. Rf4 {[%clk 0:00:22]}  Rf6 {[%clk 0:00:08]} 35. Rxf6+ {[%clk 0:00:21]}  Kxf6 {[%clk 0:00:08]} 36. Rc6+ {[%clk 0:00:21]}  Kf5 {[%clk 0:00:07]} 37. Ra6 {[%clk 0:00:22]}  Kg4 {[%clk 0:00:05]} 38. Kg2 {[%clk 0:00:21]}  g5 {[%clk 0:00:04]} 39. Rxa7 {[%clk 0:00:20]}  f5 {[%clk 0:00:05]} 40. h3+ {[%clk 0:00:09]}  Rxh3 {[%clk 0:00:04]} 41. b6 {[%clk 0:00:08]}  f4 {[%clk 0:00:04]} 42. a5 {[%clk 0:00:07]}  f3+ {[%clk 0:00:04]} 43. Kg1 {[%clk 0:00:07]}  Rh6 {[%clk 0:00:04]} 44. Rc7 {[%clk 0:00:06]}  Rd6 {[%clk 0:00:04]} 45. Rc1 {[%clk 0:00:04]}  Kh3 {[%clk 0:00:04]} 46. b7 {[%clk 0:00:04]}  Rd8 {[%clk 0:00:04]} 47. a6 {[%clk 0:00:05]}  g4 {[%clk 0:00:04]} 48. a7 {[%clk 0:00:05]}  g3 {[%clk 0:00:02]} 49. b8=Q {[%clk 0:00:06]} 1-0


[Site "https://www.chess.com"]

[Event "Titled Tuesday Blitz August 1 Early 2023"]
[White "Andreikin, Dmitry"]
[Black "Khamdamova, Afruza"]
[WhiteFideId "4158814"]
[BlackFideId "14210444"]
[WhiteElo "3039"]
[BlackElo "2507"]
[Result "1-0"]
[Round "1"]
[TimeControl "180+1"]
[Date "2023.08.01"]
[WhiteClock "0:00:34"]
[BlackClock "0:00:00"]
[Board "8"]

1. d4 {[%clk 0:03:00]}  Nf6 {[%clk 0:02:59]} 2. c4 {[%clk 0:03:00]}  e6 {[%clk 0:02:58]} 3. Nf3 {[%clk 0:03:00]}  d5 {[%clk 0:02:59]} 4. Bg5 {[%clk 0:03:00]}  Be7 {[%clk 0:02:59]} 5. e3 {[%clk 0:03:00]}  O-O {[%clk 0:02:58]} 6. Nc3 {[%clk 0:03:00]}  h6 {[%clk 0:02:58]} 7. Bh4 {[%clk 0:02:56]}  b6 {[%clk 0:02:58]} 8. cxd5 {[%clk 0:02:55]}  Nxd5 {[%clk 0:02:58]} 9. Bxe7 {[%clk 0:02:55]}  Qxe7 {[%clk 0:02:57]} 10. Nxd5 {[%clk 0:02:54]}  exd5 {[%clk 0:02:57]} 11. Rc1 {[%clk 0:02:55]}  Be6 {[%clk 0:02:55]} 12. Bd3 {[%clk 0:02:54]}  c5 {[%clk 0:02:55]} 13. dxc5 {[%clk 0:02:54]}  bxc5 {[%clk 0:02:55]} 14. O-O {[%clk 0:02:54]}  Nd7 {[%clk 0:02:54]} 15. Qd2 {[%clk 0:02:52]}  a5 {[%clk 0:02:44]} 16. h3 {[%clk 0:02:49]}  Rfc8 {[%clk 0:02:44]} 17. Bb5 {[%clk 0:02:46]}  Nf6 {[%clk 0:02:43]} 18. Rfd1 {[%clk 0:02:41]}  Qb7 {[%clk 0:02:35]} 19. a4 {[%clk 0:02:29]}  Ne4 {[%clk 0:02:29]} 20. Qe2 {[%clk 0:02:25]}  c4 {[%clk 0:02:21]} 21. Nd4 {[%clk 0:02:23]}  Nc5 {[%clk 0:02:21]} 22. Qh5 {[%clk 0:02:14]}  Bd7 {[%clk 0:02:08]} 23. Rc2 {[%clk 0:02:04]}  Nd3 {[%clk 0:02:04]} 24. Rcd2 {[%clk 0:01:46]}  Bxb5 {[%clk 0:02:02]} 25. axb5 {[%clk 0:01:47]}  a4 {[%clk 0:01:58]} 26. Nf5 {[%clk 0:01:38]}  Qc7 {[%clk 0:00:49]} 27. Qg4 {[%clk 0:01:31]}  Qe5 {[%clk 0:00:33]} 28. Nxh6+ {[%clk 0:01:21]}  Kf8 {[%clk 0:00:33]} 29. Nf5 {[%clk 0:01:21]}  Rab8 {[%clk 0:00:27]} 30. Qh5 {[%clk 0:01:12]}  g6 {[%clk 0:00:19]} 31. Qh6+ {[%clk 0:01:12]}  Kg8 {[%clk 0:00:19]} 32. Nd4 {[%clk 0:01:13]}  Rb6 {[%clk 0:00:10]} 33. Ra1 {[%clk 0:01:02]}  Ra8 {[%clk 0:00:10]} 34. Qh4 {[%clk 0:01:02]}  Kg7 {[%clk 0:00:08]} 35. Ra3 {[%clk 0:00:53]}  Nc5 {[%clk 0:00:05]} 36. Nc6 {[%clk 0:00:48]}  Qd6 {[%clk 0:00:03]} 37. Qd4+ {[%clk 0:00:44]}  Kg8 {[%clk 0:00:04]} 38. Qxd5 {[%clk 0:00:43]}  Qxd5 {[%clk 0:00:04]} 39. Ne7+ {[%clk 0:00:44]}  Kg7 {[%clk 0:00:03]} 40. Nxd5 {[%clk 0:00:45]}  Rb7 {[%clk 0:00:03]} 41. Nc3 {[%clk 0:00:41]}  Rb6 {[%clk 0:00:02]} 42. Rd4 {[%clk 0:00:38]}  Nd3 {[%clk 0:00:01]} 43. Rxc4 {[%clk 0:00:33]}  Nxb2 {[%clk 0:00:01]} 44. Rb4 {[%clk 0:00:34]}  Nd3 {[%clk 0:00:00]} 45. Rbxa4 {[%clk 0:00:34]} 1-0


[Site "https://www.chess.com"]

[Event "Titled Tuesday Blitz August 1 Early 2023"]
[White "feuervogel1000000"]
[Black "Xu, Xiangyu"]
[BlackFideId "8608288"]
[WhiteElo "2503"]
[BlackElo "3004"]
[Result "0-1"]
[Round "1"]
[TimeControl "180+1"]
[Date "2023.08.01"]
[WhiteClock "0:00:10"]
[BlackClock "0:01:49"]
[Board "13"]

1. d4 {[%clk 0:03:00]}  Nf6 {[%clk 0:02:59]} 2. c3 {[%clk 0:02:47]}  g6 {[%clk 0:02:59]} 3. Nf3 {[%clk 0:02:25]}  Bg7 {[%clk 0:02:59]} 4. g3 {[%clk 0:02:25]}  d5 {[%clk 0:02:58]} 5. Bg2 {[%clk 0:02:26]}  c5 {[%clk 0:02:58]} 6. O-O {[%clk 0:02:26]}  b6 {[%clk 0:02:56]} 7. a4 {[%clk 0:02:25]}  Nc6 {[%clk 0:02:56]} 8. Nbd2 {[%clk 0:02:25]}  O-O {[%clk 0:02:55]} 9. b3 {[%clk 0:02:21]}  cxd4 {[%clk 0:02:53]} 10. cxd4 {[%clk 0:02:22]}  Ba6 {[%clk 0:02:52]} 11. Ba3 {[%clk 0:02:21]}  Qd7 {[%clk 0:02:52]} 12. Re1 {[%clk 0:02:20]}  Rfc8 {[%clk 0:02:52]} 13. Rc1 {[%clk 0:02:19]}  e6 {[%clk 0:02:49]} 14. Rc2 {[%clk 0:02:16]}  Na5 {[%clk 0:02:38]} 15. Ne5 {[%clk 0:02:11]}  Qb7 {[%clk 0:02:38]} 16. Qb1 {[%clk 0:02:05]}  Rxc2 {[%clk 0:02:37]} 17. Qxc2 {[%clk 0:02:05]}  Rc8 {[%clk 0:02:35]} 18. Qb2 {[%clk 0:02:06]}  Nc6 {[%clk 0:02:34]} 19. Nxc6 {[%clk 0:02:05]}  Qxc6 {[%clk 0:02:34]} 20. e3 {[%clk 0:02:02]}  Bf8 {[%clk 0:02:32]} 21. Bxf8 {[%clk 0:01:57]}  Kxf8 {[%clk 0:02:33]} 22. Bf1 {[%clk 0:01:56]}  Bxf1 {[%clk 0:02:33]} 23. Kxf1 {[%clk 0:01:57]}  Qc2 {[%clk 0:02:33]} 24. Qxc2 {[%clk 0:01:54]}  Rxc2 {[%clk 0:02:34]} 25. Rd1 {[%clk 0:01:54]}  Rb2 {[%clk 0:02:29]} 26. f3 {[%clk 0:01:54]}  Ke7 {[%clk 0:02:28]} 27. Ke2 {[%clk 0:01:54]}  Rc2 {[%clk 0:02:21]} 28. Kd3 {[%clk 0:01:54]}  Rc8 {[%clk 0:02:20]} 29. g4 {[%clk 0:01:53]}  h5 {[%clk 0:02:20]} 30. g5 {[%clk 0:01:52]}  Ne8 {[%clk 0:02:17]} 31. f4 {[%clk 0:01:52]}  Nd6 {[%clk 0:02:17]} 32. Ra1 {[%clk 0:01:49]}  a5 {[%clk 0:02:16]} 33. Rf1 {[%clk 0:01:45]}  Kd7 {[%clk 0:02:13]} 34. Rd1 {[%clk 0:01:45]}  Rc6 {[%clk 0:02:08]} 35. Ra1 {[%clk 0:01:43]}  Kc7 {[%clk 0:02:08]} 36. Rb1 {[%clk 0:01:41]}  Kb7 {[%clk 0:02:08]} 37. Ra1 {[%clk 0:01:40]}  Ka6 {[%clk 0:02:08]} 38. Rb1 {[%clk 0:01:37]}  b5 {[%clk 0:02:08]} 39. Ra1 {[%clk 0:01:36]}  b4 {[%clk 0:02:08]} 40. Rb1 {[%clk 0:01:09]}  Kb6 {[%clk 0:02:08]} 41. Ke2 {[%clk 0:01:10]}  Rc3 {[%clk 0:02:07]} 42. Rb2 {[%clk 0:01:08]}  Kc6 {[%clk 0:02:06]} 43. Nf1 {[%clk 0:01:07]}  Ne4 {[%clk 0:02:02]} 44. Nd2 {[%clk 0:00:34]}  Nd6 {[%clk 0:02:02]} 45. Nb1 {[%clk 0:00:32]}  Rc1 {[%clk 0:02:00]} 46. Nd2 {[%clk 0:00:32]}  Nf5 {[%clk 0:01:58]} 47. Kd3 {[%clk 0:00:31]}  Rc3+ {[%clk 0:01:58]} 48. Ke2 {[%clk 0:00:31]}  Rxe3+ {[%clk 0:01:58]} 49. Kf2 {[%clk 0:00:27]}  Kd6 {[%clk 0:01:58]} 50. Rc2 {[%clk 0:00:25]}  Nxd4 {[%clk 0:01:52]} 51. Kxe3 {[%clk 0:00:15]}  Nxc2+ {[%clk 0:01:50]} 52. Kd3 {[%clk 0:00:16]}  Ne1+ {[%clk 0:01:47]} 53. Ke3 {[%clk 0:00:09]}  Ng2+ {[%clk 0:01:47]} 54. Kf3 {[%clk 0:00:08]}  Nh4+ {[%clk 0:01:47]} 55. Ke3 {[%clk 0:00:09]}  Nf5+ {[%clk 0:01:47]} 56. Kd3 {[%clk 0:00:10]}  Ne7 {[%clk 0:01:48]} 57. Nf3 {[%clk 0:00:11]}  Nc6 {[%clk 0:01:48]} 58. h3 {[%clk 0:00:11]}  e5 {[%clk 0:01:48]} 59. fxe5+ {[%clk 0:00:11]}  Nxe5+ {[%clk 0:01:49]} 60. Ke3 {[%clk 0:00:10]}  Nxf3 {[%clk 0:01:49]} 0-1


[Site "https://www.chess.com"]

[Event "Titled Tuesday Blitz August 1 Early 2023"]
[White "Megaranto, Susanto"]
[Black "Shubenkova, Veronika"]
[WhiteFideId "7101384"]
[BlackFideId "44124040"]
[WhiteElo "2968"]
[BlackElo "2500"]
[Result "1-0"]
[Round "1"]
[TimeControl "180+1"]
[Date "2023.08.01"]
[WhiteClock "0:01:02"]
[BlackClock "0:01:01"]
[Board "16"]

1. e4 {[%clk 0:02:59]}  e6 {[%clk 0:03:00]} 2. Qe2 {[%clk 0:02:57]}  c6 {[%clk 0:02:57]} 3. d4 {[%clk 0:02:56]}  d5 {[%clk 0:02:58]} 4. Nd2 {[%clk 0:02:52]}  Nf6 {[%clk 0:02:57]} 5. c3 {[%clk 0:02:52]}  Be7 {[%clk 0:02:57]} 6. Ngf3 {[%clk 0:02:51]}  b6 {[%clk 0:02:54]} 7. e5 {[%clk 0:02:48]}  Nfd7 {[%clk 0:02:54]} 8. g3 {[%clk 0:02:46]}  Ba6 {[%clk 0:02:53]} 9. Qe3 {[%clk 0:02:47]}  Bxf1 {[%clk 0:02:52]} 10. Kxf1 {[%clk 0:02:48]}  c5 {[%clk 0:02:52]} 11. Kg2 {[%clk 0:02:48]}  Nc6 {[%clk 0:02:53]} 12. h4 {[%clk 0:02:48]}  h6 {[%clk 0:02:52]} 13. a3 {[%clk 0:02:47]}  c4 {[%clk 0:02:50]} 14. h5 {[%clk 0:02:45]}  Qc7 {[%clk 0:02:49]} 15. Qe2 {[%clk 0:02:42]}  b5 {[%clk 0:02:46]} 16. Nh2 {[%clk 0:02:42]}  a5 {[%clk 0:02:45]} 17. f4 {[%clk 0:02:42]}  a4 {[%clk 0:02:46]} 18. Ndf3 {[%clk 0:02:38]}  O-O-O {[%clk 0:02:46]} 19. Be3 {[%clk 0:02:38]}  Kb7 {[%clk 0:02:45]} 20. Raf1 {[%clk 0:02:38]}  g6 {[%clk 0:02:42]} 21. Rf2 {[%clk 0:02:35]}  Rdg8 {[%clk 0:02:42]} 22. hxg6 {[%clk 0:02:31]}  fxg6 {[%clk 0:02:39]} 23. Ng4 {[%clk 0:02:27]}  h5 {[%clk 0:02:37]} 24. Ngh2 {[%clk 0:02:28]}  Bd8 {[%clk 0:02:36]} 25. Ng5 {[%clk 0:02:23]}  Nf8 {[%clk 0:02:35]} 26. Nhf3 {[%clk 0:02:21]}  Ne7 {[%clk 0:02:35]} 27. Nf7 {[%clk 0:02:19]}  Rh7 {[%clk 0:02:34]} 28. N3g5 {[%clk 0:02:17]}  Rhg7 {[%clk 0:02:33]} 29. g4 {[%clk 0:02:13]}  hxg4 {[%clk 0:02:31]} 30. Qxg4 {[%clk 0:02:01]}  Nf5 {[%clk 0:02:31]} 31. Nxd8+ {[%clk 0:02:01]}  Qxd8 {[%clk 0:02:29]} 32. Bd2 {[%clk 0:02:02]}  Qe7 {[%clk 0:02:26]} 33. Kf1 {[%clk 0:01:58]}  Nh7 {[%clk 0:02:10]} 34. Nf3 {[%clk 0:01:52]}  Nf8 {[%clk 0:02:06]} 35. Rg2 {[%clk 0:01:48]}  Ka6 {[%clk 0:02:05]} 36. Rgh2 {[%clk 0:01:48]}  Ka5 {[%clk 0:02:00]} 37. Ke2 {[%clk 0:01:47]}  Qf7 {[%clk 0:01:55]} 38. Ng5 {[%clk 0:01:46]}  Qe7 {[%clk 0:01:55]} 39. Kd1 {[%clk 0:01:47]}  Ka6 {[%clk 0:01:54]} 40. Kc1 {[%clk 0:01:47]}  Ka5 {[%clk 0:01:54]} 41. Kb1 {[%clk 0:01:47]}  Ka6 {[%clk 0:01:55]} 42. Be1 {[%clk 0:01:44]}  Ka5 {[%clk 0:01:54]} 43. Bh4 {[%clk 0:01:44]}  Qd7 {[%clk 0:01:51]} 44. Nf3 {[%clk 0:01:43]}  Ka6 {[%clk 0:01:47]} 45. Bf6 {[%clk 0:01:42]}  Rf7 {[%clk 0:01:44]} 46. Ng5 {[%clk 0:01:42]}  Ka5 {[%clk 0:01:30]} 47. Rh8 {[%clk 0:01:30]}  Rxh8 {[%clk 0:01:30]} 48. Rxh8 {[%clk 0:01:31]}  Ka6 {[%clk 0:01:28]} 49. Rg8 {[%clk 0:01:26]}  Ka5 {[%clk 0:01:27]} 50. Qh3 {[%clk 0:01:23]}  Ka6 {[%clk 0:01:19]} 51. Qh8 {[%clk 0:01:20]}  b4 {[%clk 0:01:04]} 52. Nxf7 {[%clk 0:01:06]}  bxa3 {[%clk 0:01:03]} 53. Rxf8 {[%clk 0:01:06]}  axb2 {[%clk 0:01:00]} 54. Ra8+ {[%clk 0:01:05]}  Kb6 {[%clk 0:01:00]} 55. Qb8+ {[%clk 0:01:02]}  Qb7 {[%clk 0:01:01]} 1-0


[Site "https://www.chess.com"]

[Event "Titled Tuesday Blitz August 1 Early 2023"]
[White "Hakobyan, Aram"]
[Black "Makkar, Rajat"]
[WhiteFideId "13306677"]
[BlackFideId "36016810"]
[WhiteElo "2947"]
[BlackElo "2497"]
[Result "1-0"]
[Round "1"]
[TimeControl "180+1"]
[Date "2023.08.01"]
[WhiteClock "0:00:43"]
[BlackClock "0:00:56"]
[Board "20"]

1. e4 {[%clk 0:03:00]}  e5 {[%clk 0:02:57]} 2. Nf3 {[%clk 0:03:01]}  Nc6 {[%clk 0:02:58]} 3. Nc3 {[%clk 0:03:01]}  Nf6 {[%clk 0:02:58]} 4. Nd5 {[%clk 0:03:02]}  Nxd5 {[%clk 0:02:55]} 5. exd5 {[%clk 0:03:02]}  Ne7 {[%clk 0:02:48]} 6. Nxe5 {[%clk 0:03:02]}  Nxd5 {[%clk 0:02:43]} 7. Bc4 {[%clk 0:02:54]}  c6 {[%clk 0:02:05]} 8. O-O {[%clk 0:02:44]}  Bd6 {[%clk 0:02:04]} 9. d4 {[%clk 0:02:41]}  O-O {[%clk 0:02:02]} 10. Qf3 {[%clk 0:02:31]}  Bxe5 {[%clk 0:01:58]} 11. dxe5 {[%clk 0:02:32]}  Nb6 {[%clk 0:01:58]} 12. Bd3 {[%clk 0:02:21]}  d6 {[%clk 0:01:55]} 13. Rd1 {[%clk 0:01:55]}  d5 {[%clk 0:01:46]} 14. Qg3 {[%clk 0:01:55]}  f6 {[%clk 0:01:36]} 15. exf6 {[%clk 0:01:49]}  Qxf6 {[%clk 0:01:33]} 16. Bg5 {[%clk 0:01:48]}  Qf7 {[%clk 0:01:32]} 17. Re1 {[%clk 0:01:45]}  Be6 {[%clk 0:01:25]} 18. Re3 {[%clk 0:01:43]}  Rae8 {[%clk 0:01:24]} 19. Rae1 {[%clk 0:01:43]}  d4 {[%clk 0:01:17]} 20. R3e2 {[%clk 0:01:34]}  c5 {[%clk 0:01:16]} 21. Bb5 {[%clk 0:00:58]}  Bd7 {[%clk 0:01:10]} 22. Re7 {[%clk 0:00:56]}  Bxb5 {[%clk 0:01:10]} 23. h3 {[%clk 0:00:56]}  Rxe7 {[%clk 0:01:07]} 24. Rxe7 {[%clk 0:00:57]}  Qg6 {[%clk 0:01:07]} 25. Rxb7 {[%clk 0:00:56]}  Bc6 {[%clk 0:01:07]} 26. Rxa7 {[%clk 0:00:55]}  Nc4 {[%clk 0:01:03]} 27. b3 {[%clk 0:00:50]}  Nd6 {[%clk 0:01:02]} 28. Be7 {[%clk 0:00:45]}  Qxg3 {[%clk 0:00:58]} 29. fxg3 {[%clk 0:00:45]}  Nc8 {[%clk 0:00:58]} 30. Bxf8 {[%clk 0:00:43]}  Nd6 {[%clk 0:00:56]} 31. Bxd6 {[%clk 0:00:43]} 1-0


[Site "https://www.chess.com"]

[Event "Titled Tuesday Blitz August 1 Early 2023"]
[White "Liu, Casper"]
[Black "Jones, Gawain C B"]
[WhiteFideId "1454153"]
[BlackFideId "409561"]
[WhiteElo "2487"]
[BlackElo "2929"]
[Result "1-0"]
[Round "1"]
[TimeControl "180+1"]
[Date "2023.08.01"]
[WhiteClock "0:00:10"]
[BlackClock "0:00:02"]
[Board "25"]

1. e4 {[%clk 0:03:00]}  e5 {[%clk 0:02:59]} 2. d4 {[%clk 0:03:00]}  exd4 {[%clk 0:02:59]} 3. Qxd4 {[%clk 0:03:01]}  Nc6 {[%clk 0:02:59]} 4. Qe3 {[%clk 0:03:02]}  Nf6 {[%clk 0:03:00]} 5. Nc3 {[%clk 0:03:03]}  Bb4 {[%clk 0:03:00]} 6. Bd2 {[%clk 0:03:03]}  O-O {[%clk 0:03:00]} 7. O-O-O {[%clk 0:03:04]}  Re8 {[%clk 0:03:00]} 8. Qf4 {[%clk 0:03:03]}  Bxc3 {[%clk 0:02:56]} 9. Bxc3 {[%clk 0:03:04]}  Nxe4 {[%clk 0:02:52]} 10. Bc4 {[%clk 0:03:04]}  Nxc3 {[%clk 0:02:04]} 11. Bxf7+ {[%clk 0:02:52]}  Kh8 {[%clk 0:02:03]} 12. Bxe8 {[%clk 0:02:53]}  Nxa2+ {[%clk 0:01:54]} 13. Kb1 {[%clk 0:02:50]}  Qxe8 {[%clk 0:01:54]} 14. Nf3 {[%clk 0:02:47]}  d6 {[%clk 0:01:40]} 15. Rhe1 {[%clk 0:02:45]}  Be6 {[%clk 0:01:36]} 16. Ng5 {[%clk 0:02:43]}  Ne5 {[%clk 0:01:32]} 17. Qe4 {[%clk 0:02:02]}  Bg8 {[%clk 0:01:25]} 18. f4 {[%clk 0:01:58]}  Qb5 {[%clk 0:01:23]} 19. Re3 {[%clk 0:01:48]}  Nc4 {[%clk 0:00:53]} 20. Rb3 {[%clk 0:01:47]}  Qa5 {[%clk 0:00:39]} 21. Rh3 {[%clk 0:01:35]}  h6 {[%clk 0:00:25]} 22. Qg6 {[%clk 0:01:20]}  Nc3+ {[%clk 0:00:23]} 23. Rxc3 {[%clk 0:01:08]}  Qb4 {[%clk 0:00:22]} 24. Rb3 {[%clk 0:01:03]}  Nd2+ {[%clk 0:00:21]} 25. Rxd2 {[%clk 0:01:03]}  Qxd2 {[%clk 0:00:21]} 26. Nf7+ {[%clk 0:00:38]}  Bxf7 {[%clk 0:00:20]} 27. Qxf7 {[%clk 0:00:39]}  Qd1+ {[%clk 0:00:21]} 28. Ka2 {[%clk 0:00:39]}  Qxc2 {[%clk 0:00:21]} 29. f5 {[%clk 0:00:27]}  Rg8 {[%clk 0:00:08]} 30. f6 {[%clk 0:00:20]}  gxf6 {[%clk 0:00:07]} 31. Qxf6+ {[%clk 0:00:19]}  Kh7 {[%clk 0:00:07]} 32. Re3 {[%clk 0:00:09]}  Qa4+ {[%clk 0:00:06]} 33. Kb1 {[%clk 0:00:10]}  Qd1+ {[%clk 0:00:06]} 34. Ka2 {[%clk 0:00:10]}  Rg7 {[%clk 0:00:03]} 35. Qf5+ {[%clk 0:00:10]}  Rg6 {[%clk 0:00:02]} 36. Re7+ {[%clk 0:00:10]}  Kh8 {[%clk 0:00:02]} 37. Qf8+ {[%clk 0:00:10]}  Rg8 {[%clk 0:00:02]} 38. Qxh6# {[%clk 0:00:10]} 1-0


[Site "https://www.chess.com"]

[Event "Titled Tuesday Blitz August 1 Early 2023"]
[White "Gholami Orimi, Mahdi"]
[Black "Brunner, Nicolas"]
[WhiteFideId "12558486"]
[BlackFideId "620246"]
[WhiteElo "2915"]
[BlackElo "2487"]
[Result "1-0"]
[Round "1"]
[TimeControl "180+1"]
[Date "2023.08.01"]
[WhiteClock "0:00:13"]
[BlackClock "0:00:01"]
[Board "26"]

1. Nf3 {[%clk 0:02:55]}  c5 {[%clk 0:02:59]} 2. b3 {[%clk 0:02:52]}  Nc6 {[%clk 0:02:58]} 3. Bb2 {[%clk 0:02:52]}  d6 {[%clk 0:02:59]} 4. e3 {[%clk 0:02:52]}  e5 {[%clk 0:02:58]} 5. d4 {[%clk 0:02:50]}  cxd4 {[%clk 0:02:58]} 6. exd4 {[%clk 0:02:51]}  e4 {[%clk 0:02:58]} 7. Nfd2 {[%clk 0:02:51]}  d5 {[%clk 0:02:59]} 8. c4 {[%clk 0:02:51]}  Nf6 {[%clk 0:02:50]} 9. cxd5 {[%clk 0:02:50]}  Qxd5 {[%clk 0:02:50]} 10. Bc4 {[%clk 0:02:47]}  Qf5 {[%clk 0:02:50]} 11. O-O {[%clk 0:02:46]}  Bd6 {[%clk 0:02:47]} 12. Nc3 {[%clk 0:02:24]}  O-O {[%clk 0:02:31]} 13. f3 {[%clk 0:01:59]}  e3 {[%clk 0:02:27]} 14. Nde4 {[%clk 0:01:58]}  Bf4 {[%clk 0:02:09]} 15. g3 {[%clk 0:01:48]}  Bh6 {[%clk 0:02:09]} 16. d5 {[%clk 0:01:41]}  Ne5 {[%clk 0:02:07]} 17. Be2 {[%clk 0:01:34]}  Rd8 {[%clk 0:01:47]} 18. Nxf6+ {[%clk 0:01:30]}  Qxf6 {[%clk 0:01:47]} 19. f4 {[%clk 0:01:31]}  Ng6 {[%clk 0:01:41]} 20. Qd3 {[%clk 0:01:27]}  Bh3 {[%clk 0:01:38]} 21. Rfd1 {[%clk 0:01:10]}  Re8 {[%clk 0:01:14]} 22. Na4 {[%clk 0:01:07]}  Qf5 {[%clk 0:01:10]} 23. Qxf5 {[%clk 0:00:58]}  Bxf5 {[%clk 0:01:10]} 24. d6 {[%clk 0:00:59]}  Rad8 {[%clk 0:01:04]} 25. Nc5 {[%clk 0:00:57]}  b6 {[%clk 0:00:58]} 26. Na6 {[%clk 0:00:55]}  Bd7 {[%clk 0:00:48]} 27. Nc7 {[%clk 0:00:53]}  Rf8 {[%clk 0:00:44]} 28. Rd3 {[%clk 0:00:48]}  Nxf4 {[%clk 0:00:23]} 29. gxf4 {[%clk 0:00:47]}  Bxf4 {[%clk 0:00:24]} 30. Rad1 {[%clk 0:00:47]}  Bf5 {[%clk 0:00:15]} 31. Rd5 {[%clk 0:00:45]}  Bd7 {[%clk 0:00:11]} 32. R1d4 {[%clk 0:00:41]}  Bh6 {[%clk 0:00:08]} 33. Rh5 {[%clk 0:00:39]}  Bc6 {[%clk 0:00:08]} 34. Nd5 {[%clk 0:00:38]}  Kh8 {[%clk 0:00:06]} 35. Ne7 {[%clk 0:00:37]}  Bd7 {[%clk 0:00:05]} 36. Rxh6 {[%clk 0:00:36]}  gxh6 {[%clk 0:00:05]} 37. Rf4+ {[%clk 0:00:34]}  f6 {[%clk 0:00:04]} 38. Rxf6 {[%clk 0:00:34]}  Kg7 {[%clk 0:00:05]} 39. Rg6+ {[%clk 0:00:34]}  Kf7 {[%clk 0:00:05]} 40. Rg7+ {[%clk 0:00:35]}  Ke6 {[%clk 0:00:05]} 41. Ba3 {[%clk 0:00:31]}  Ke5 {[%clk 0:00:01]} 42. Rg3 {[%clk 0:00:26]}  Ke4 {[%clk 0:00:01]} 43. Bc4 {[%clk 0:00:20]}  Rf2 {[%clk 0:00:01]} 44. Bb4 {[%clk 0:00:14]}  Kd4 {[%clk 0:00:01]} 45. Nd5 {[%clk 0:00:13]}  Be6 {[%clk 0:00:01]} 46. Bc3+ {[%clk 0:00:13]}  Kc5 {[%clk 0:00:01]} 47. Nxe3 {[%clk 0:00:14]}  Bxc4 {[%clk 0:00:01]} 48. Kxf2 {[%clk 0:00:14]}  Bb5 {[%clk 0:00:01]} 49. Be5 {[%clk 0:00:14]}  Re8 {[%clk 0:00:01]} 50. Bf4 {[%clk 0:00:15]}  Rf8 {[%clk 0:00:01]} 51. Rg4 {[%clk 0:00:15]}  Kc6 {[%clk 0:00:01]} 52. Kg3 {[%clk 0:00:15]}  h5 {[%clk 0:00:01]} 53. Rh4 {[%clk 0:00:13]}  Be2 {[%clk 0:00:01]} 54. Nc2 {[%clk 0:00:12]}  Rg8+ {[%clk 0:00:01]} 55. Kf2 {[%clk 0:00:13]}  Bd3 {[%clk 0:00:01]} 56. Nd4+ {[%clk 0:00:13]}  Kd5 {[%clk 0:00:01]} 57. Ke3 {[%clk 0:00:13]}  Bg6 {[%clk 0:00:02]} 58. Bg3 {[%clk 0:00:13]}  Re8+ {[%clk 0:00:02]} 59. Kd2 {[%clk 0:00:13]}  Be4 {[%clk 0:00:03]} 60. Nb5 {[%clk 0:00:13]}  Bf3 {[%clk 0:00:01]} 61. Nc7+ {[%clk 0:00:13]} 1-0


[Site "https://www.chess.com"]